fUSD/lending_fUSD_20250606
["ID","MTS","AMOUNT","RATE_DAILY","PERIOD"]
[364762680,1749232239064,-480.0,0.00027397,5]
[364762681,1749232239218,-484.17425303,0.00027397,5]
[364762682,1749232239241,-480.0,0.00027397,5]
[364762683,1749232239252,-480.0,0.00027397,5]
[364762684,1749232239261,-480.0,0.00027397,5]
[364762685,1749232239271,-480.0,0.00027397,5]
[364762686,1749232239280,-480.0,0.00027397,5]
[364762687,1749232239289,-487.04689667,0.00027397,5]
[364762688,1749232239299,-480.0,0.00027397,5]
[364762689,1749232239309,-896.75,0.00027397,5]
[364762690,1749232239319,-480.0,0.00027397,5]
[364762691,1749232239328,-480.0,0.00027397,5]
[364762692,1749232239337,-480.0,0.00027397,5]
[364762693,1749232239347,-486.16470716,0.00027397,5]
[364762694,1749232239356,-480.0,0.00027397,5]
[364762695,1749232239365,-480.0,0.00027397,5]
[364762696,1749232239375,-480.0,0.00027397,5]
[364762697,1749232239384,-480.0,0.00027397,5]
[364762698,1749232239397,-487.88626891,0.00027397,5]
[364762699,1749232239407,-480.0,0.00027397,5]
[364762700,1749232239416,-480.0,0.00027397,5]
[364762701,1749232239425,-480.0,0.00027397,5]
[364762702,1749232239434,-545.88167376,0.00027397,5]
[364762703,1749232239445,-480.0,0.00027397,5]
[364762704,1749232239454,-480.0,0.00027397,5]
[364762705,1749232239464,-480.0,0.00027397,5]
[364762706,1749232239473,-480.0,0.00027397,5]
[364762707,1749232239482,-480.0,0.00027397,5]
[364762708,1749232239492,-480.0,0.00027397,5]
[364762709,1749232239501,-480.0,0.00027397,5]
[364762710,1749232239511,-480.0,0.00027397,5]
[364762711,1749232239520,-480.0,0.00027397,5]
[364762712,1749232239529,-480.0,0.00027397,5]
[364762713,1749232239538,-480.0,0.00027397,5]
[364762714,1749232239548,-480.0,0.00027397,5]
[364762715,1749232239557,-480.0,0.00027397,5]
[364762716,1749232239567,-630.9,0.00027397,5]
[364762717,1749232239578,-480.0,0.00027397,5]
[364762718,1749232239587,-480.0,0.00027397,5]
[364762719,1749232239597,-777.390373,0.00027397,5]
[364762720,1749232239607,-480.0,0.00027397,5]
[364762721,1749232239616,-480.0,0.00027397,5]
[364762722,1749232239626,-480.0,0.00027397,5]
[364762723,1749232239635,-470.55415532,0.00027397,5]
[364762724,1749232239645,-480.0,0.00027397,5]
[364762725,1749232239654,-480.0,0.00027397,5]
[364762726,1749232239663,-540.11261806,0.00027397,5]
[364762727,1749232239673,-480.0,0.00027397,5]
[364762728,1749232239683,-480.0,0.00027397,5]
[364762729,1749232239692,-500.0,0.00027397,2]
[364762730,1749232239702,-480.0,0.00027397,5]
[364762731,1749232239711,-480.0,0.00027397,5]
[364762732,1749232239721,-500.0,0.00027397,2]
[364762733,1749232239730,-500.0,0.00027397,2]
[364762734,1749232239739,-573.30210666,0.00027397,2]
[364762735,1749232239749,-500.0,0.00027397,2]
[364762736,1749232239759,-480.0,0.00027397,5]
[364762737,1749232239769,-500.0,0.00027397,5]
[364762738,1749232239778,-500.0,0.00027397,5]
[364762739,1749232239787,-500.0,0.00027397,5]
[364762740,1749232239798,-500.0,0.00027397,5]
[364762741,1749232239807,-500.0,0.00027397,5]
[364762742,1749232239817,-500.0,0.00027397,5]
[364762743,1749232239826,-500.0,0.00027397,5]
[364762744,1749232239836,-500.0,0.00027397,5]
[364762745,1749232239845,-500.0,0.00027397,5]
[364762746,1749232239855,-480.0,0.00027397,5]
[364762747,1749232239864,-500.0,0.00027397,5]
[364762748,1749232239874,-500.0,0.00027397,5]
[364762749,1749232239883,-500.0,0.00027397,5]
[364762750,1749232239892,-500.0,0.00027397,5]
[364762751,1749232239901,-500.0,0.00027397,5]
[364762752,1749232239911,-500.0,0.00027397,5]
[364762753,1749232239920,-500.0,0.00027397,5]
[364762754,1749232239930,-500.0,0.00027397,5]
[364762755,1749232239940,-480.0,0.00027397,5]
[364762756,1749232239949,-480.0,0.00027397,5]
[364762757,1749232239960,-480.0,0.00027397,5]
[364762758,1749232239969,-928.199775,0.00027397,5]
[364762759,1749232239979,-480.0,0.00027397,5]
[364762760,1749232239988,-481.88,0.00027397,5]
[364762761,1749232239998,-480.0,0.00027397,5]
[364762762,1749232240009,-480.0,0.00027397,5]
[364762763,1749232240019,-480.0,0.00027397,5]
[364762764,1749232240028,-480.0,0.00027397,5]
[364762765,1749232240037,-480.0,0.00027397,5]
[364762766,1749232240046,-480.0,0.00027397,5]
[364762767,1749232240057,-243.92404458,0.00027397,5]
[364762768,1749232240067,-480.0,0.00027397,5]
[364762769,1749232240077,-480.0,0.00027397,5]
[364762770,1749232240087,-428.50182905,0.00027397,5]
[364762771,1749232240096,-480.0,0.00027397,5]
[364762772,1749232240106,-480.0,0.00027397,5]
[364762773,1749232240116,-239.93045498,0.00027397,5]
[364762774,1749232240125,-312.9485153,0.00027397,5]
[364762775,1749232240135,-480.0,0.00027397,5]
[364762776,1749232240145,-480.0,0.00027397,5]
[364762777,1749232240154,-557.37242719,0.00027397,5]
[364762778,1749232240164,-480.0,0.00027397,5]
[364762779,1749232240173,-419.20933824,0.00027397,5]
[364762780,1749232240183,-480.0,0.00027397,5]
[364762782,1749232240192,-491.7678057,0.00027397,5]
[364762783,1749232240202,-480.0,0.00027397,5]
[364762784,1749232240212,-480.0,0.00027397,5]
[364762785,1749232240222,-480.0,0.00027397,5]
[364762786,1749232240232,-480.0,0.00027397,5]
[364762787,1749232240242,-557.22684627,0.00027397,5]
[364762788,1749232240252,-480.0,0.00027397,5]
[364762789,1749232240263,-480.0,0.00027397,5]
[364762790,1749232240273,-480.0,0.00027397,5]
[364762791,1749232240283,-480.0,0.00027397,5]
[364762792,1749232240292,-480.0,0.00027397,5]
[364762793,1749232240302,-480.0,0.00027397,5]
[364762794,1749232240312,-480.0,0.00027397,5]
[364762795,1749232240322,-480.0,0.00027397,5]
[364762796,1749232240331,-480.0,0.00027397,5]
[364762797,1749232240342,-480.0,0.00027397,5]
[364762798,1749232240351,-480.0,0.00027397,5]
[364762799,1749232240360,-480.0,0.00027397,5]
[364762800,1749232240370,-1468.86,0.00027397,5]
[364762801,1749232240380,-480.0,0.00027397,5]
[364762802,1749232240390,-480.0,0.00027397,5]
[364762803,1749232240404,-536.62,0.00027397,5]
[364762804,1749232240414,-468.26953635,0.00027397,5]
[364762805,1749232240424,-480.0,0.00027397,5]
[364762806,1749232240434,-486.80132487,0.00027397,5]
[364762807,1749232240445,-480.0,0.00027397,5]
[364762808,1749232240454,-542.89148129,0.00027397,5]
[364762809,1749232240465,-480.0,0.00027397,5]
[364762810,1749232240474,-480.0,0.00027397,5]
[364762811,1749232240485,-480.0,0.00027397,5]
[364762812,1749232240495,-482.33315533,0.00027397,5]
[364762813,1749232240506,-480.0,0.00027397,5]
[364762814,1749232240516,-480.0,0.00027397,5]
[364762815,1749232240526,-480.0,0.00027397,5]
[364762816,1749232240535,-492.42876876,0.00027397,5]
[364762817,1749232240545,-480.0,0.00027397,5]
[364762818,1749232240554,-480.0,0.00027397,5]
[364762819,1749232240564,-1047.33,0.00027397,5]
[364762820,1749232240576,-480.0,0.00027397,5]
[364762821,1749232240586,-480.0,0.00027397,5]
[364762822,1749232240595,-480.0,0.00027397,5]
[364762823,1749232240605,-480.0,0.00027397,5]
[364762824,1749232240615,-480.0,0.00027397,5]
[364762825,1749232240625,-555.17860144,0.00027397,5]
[364762826,1749232240635,-480.0,0.00027397,2]
[364762827,1749232240645,-480.0,0.00027397,5]
[364762828,1749232240655,-482.2143295,0.00027397,5]
[364762829,1749232240665,-548.21,0.00027397,5]
[364762830,1749232240676,-480.0,0.00027397,5]
[364762831,1749232240686,-480.0,0.00027397,5]
[364762832,1749232240696,-493.25963774,0.00027397,5]
[364762833,1749232240706,-480.0,0.00027397,5]
[364762834,1749232240716,-481.26475001,0.00027397,5]
[364762835,1749232240725,-587.05638509,0.00027397,5]
[364762836,1749232240735,-480.0,0.00027397,5]
[364762837,1749232240745,-536.86565212,0.00027397,5]
[364762838,1749232240755,-480.0,0.00027397,5]
[364762839,1749232240764,-480.0,0.00027397,5]
[364762840,1749232240775,-506.36,0.00027397,5]
[364762841,1749232240784,-655.25,0.00027397,5]
[364762842,1749232240794,-480.0,0.00027397,5]
[364762843,1749232240804,-480.0,0.00027397,5]
[364762844,1749232240813,-480.0,0.00027397,5]
[364762845,1749232240823,-480.0,0.00027397,5]
[364762846,1749232240832,-480.0,0.00027397,5]
[364762847,1749232240842,-562.91,0.00027397,5]
[364762848,1749232240852,-480.0,0.00027397,5]
[364762849,1749232240862,-627.85645931,0.00027397,5]
[364762850,1749232240871,-480.0,0.00027397,5]
[364762851,1749232240881,-480.0,0.00027397,5]
[364762852,1749232240891,-339.10455416,0.00027397,5]
[364762853,1749232240900,-480.0,0.00027397,5]
[364762854,1749232240910,-681.75,0.00027397,5]
[364762855,1749232240920,-480.0,0.00027397,5]
[364762856,1749232240929,-289.77101876,0.00027397,5]
[364762857,1749232240939,-1022.98,0.00027397,5]
[364762858,1749232240949,-1085.93,0.00027397,5]
[364762859,1749232240959,-488.39739566,0.00027397,5]
[364762860,1749232240968,-480.0,0.00027397,5]
[364762861,1749232240978,-480.0,0.00027397,5]
[364762862,1749232240988,-480.0,0.00027397,5]
[364762863,1749232240998,-480.0,0.00027397,5]
[364762864,1749232241010,-480.0,0.00027397,5]
[364762865,1749232241020,-360.0,0.00027397,5]
[364762866,1749232241030,-300.0,0.00027397,5]
[364762867,1749232241040,-480.0,0.00027397,5]
[364762868,1749232241050,-480.0,0.00027397,5]
[364762869,1749232241060,-480.0,0.00027397,5]
[364762870,1749232241070,-480.0,0.00027397,5]
[364762871,1749232241080,-480.0,0.00027397,5]
[364762872,1749232241089,-480.0,0.00027397,5]
[364762874,1749232241099,-480.0,0.00027397,5]
[364762875,1749232241108,-480.0,0.00027397,5]
[364762878,1749232241119,-1146.93,0.00027397,5]
[364762880,1749232241128,-480.0,0.00027397,5]
[364762882,1749232241137,-480.0,0.00027397,2]
[364762884,1749232241146,-480.0,0.00027397,5]
[364762886,1749232241156,-480.0,0.00027397,5]
[364762888,1749232241165,-480.0,0.00027397,5]
[364762890,1749232241175,-473.83522985,0.00027397,5]
[364762891,1749232241185,-480.0,0.00027397,5]
[364762893,1749232241194,-506.28701828,0.00027397,5]
[364762896,1749232241204,-778.09,0.00027397,5]
[364762898,1749232241213,-480.0,0.00027397,5]
[364762900,1749232241222,-480.0,0.00027397,5]
[364762902,1749232241232,-481.98353852,0.00027397,5]
[364762904,1749232241241,-480.0,0.00027397,5]
[364762906,1749232241250,-470.04368989,0.00027397,5]
[364762908,1749232241260,-480.0,0.00027397,5]
[364762910,1749232241270,-480.0,0.00027397,5]
[364762912,1749232241279,-480.0,0.00027397,5]
[364762914,1749232241288,-480.0,0.00027397,5]
[364762916,1749232241298,-559.45,0.00027397,5]
[364762917,1749232241307,-498.25,0.00027397,5]
[364762918,1749232241317,-480.0,0.00027397,5]
[364762919,1749232241328,-480.0,0.00027397,5]
[364762920,1749232241336,-480.0,0.00027397,5]
[364762921,1749232241346,-481.31054065,0.00027397,5]
[364762922,1749232241355,-480.0,0.00027397,5]
[364762923,1749232241365,-480.0,0.00027397,5]
[364762924,1749232241374,-480.0,0.00027397,5]
[364762925,1749232241383,-480.0,0.00027397,5]
[364762926,1749232241394,-480.0,0.00027397,5]
[364762927,1749232241405,-480.0,0.00027397,5]
[364762928,1749232241415,-480.0,0.00027397,5]
[364762929,1749232241424,-480.0,0.00027397,5]
[364762930,1749232241434,-480.0,0.00027397,5]
[364762931,1749232241444,-480.0,0.00027397,5]
[364762932,1749232241454,-480.0,0.00027397,5]
[364762933,1749232241463,-480.0,0.00027397,5]
[364762934,1749232241473,-480.0,0.00027397,5]
[364762935,1749232241484,-480.0,0.00027397,5]
[364762936,1749232241493,-480.0,0.00027397,5]
[364762937,1749232241503,-480.0,0.00027397,5]
[364762938,1749232241514,-480.0,0.00027397,5]
[364762939,1749232241523,-733.4,0.00027397,5]
[364762940,1749232241532,-480.0,0.00027397,5]
[364762941,1749232241543,-493.44260344,0.00027397,5]
[364762942,1749232241552,-480.0,0.00027397,5]
[364762943,1749232241561,-480.0,0.00027397,5]
[364762944,1749232241571,-589.09,0.00027397,5]
[364762945,1749232241581,-480.0,0.00027397,5]
[364762946,1749232241591,-480.0,0.00027397,5]
[364762947,1749232241601,-480.0,0.00027397,5]
[364762948,1749232241611,-480.0,0.00027397,5]
[364762949,1749232241620,-480.0,0.00027397,5]
[364762950,1749232241630,-480.0,0.00027397,5]
[364762951,1749232241640,-480.0,0.00027397,5]
[364762952,1749232241650,-480.0,0.00027397,5]
[364762953,1749232241660,-480.0,0.00027397,5]
[364762954,1749232241670,-480.0,0.00027397,5]
[364762955,1749232241680,-207.2535787,0.00027397,5]
[364762956,1749232241690,-484.02,0.00027397,5]
[364762957,1749232241700,-1153.9,0.00027397,5]
[364762958,1749232241710,-489.2446573,0.00027397,5]
[364762959,1749232241720,-342.82524804,0.00027397,5]
[364762960,1749232241730,-480.0,0.00027397,5]
[364762961,1749232241740,-480.0,0.00027397,5]
[364762962,1749232241750,-903.84,0.00027397,5]
[364762963,1749232241762,-480.0,0.00027397,5]
[364762964,1749232241771,-480.0,0.00027397,5]
[364762965,1749232241782,-480.0,0.00027397,5]
[364762966,1749232241792,-556.62,0.00027397,5]
[364762967,1749232241802,-480.0,0.00027397,5]
[364762968,1749232241811,-506.04176666,0.00027397,5]
[364762969,1749232241821,-981.49,0.00027397,5]
[364762970,1749232241831,-480.0,0.00027397,5]
[364762971,1749232241841,-480.0,0.00027397,5]
[364762972,1749232241850,-480.0,0.00027397,5]
[364762973,1749232241859,-964.66,0.00027397,5]
[364762974,1749232241869,-311.31063395,0.00027397,5]
[364762975,1749232241879,-480.0,0.00027397,5]
[364762976,1749232241889,-500.0,0.00027397,5]
[364762977,1749232241898,-500.0,0.00027397,5]
[364762978,1749232241908,-500.0,0.00027397,5]
[364762979,1749232241918,-463.23436416,0.00027397,5]
[364762980,1749232242250,-480.0,0.00027397,5]
[364762981,1749232242262,-500.0,0.00027397,5]
[364762982,1749232242272,-500.0,0.00027397,5]
[364762983,1749232242282,-500.0,0.00027397,5]
[364762984,1749232242291,-500.0,0.00027397,5]
[364762985,1749232242301,-214.99581548,0.00027397,5]
[364762986,1749232242311,-678.4,0.00027397,5]
[364762987,1749232242321,-480.0,0.00027397,5]
[364762988,1749232242330,-480.0,0.00027397,5]
[364762989,1749232242340,-889.12,0.00027397,5]
[364762990,1749232242349,-480.0,0.00027397,5]
[364762991,1749232242359,-480.0,0.00027397,5]
[364762992,1749232242368,-480.0,0.00027397,5]
[364762993,1749232242380,-480.0,0.00027397,5]
[364762994,1749232242391,-480.0,0.00027397,5]
[364762995,1749232242405,-507.73289218,0.00027397,5]
[364762996,1749232242414,-521.62,0.00027397,5]
[364762997,1749232242424,-480.0,0.00027397,5]
[364762998,1749232242435,-367.44885359,0.00027397,5]
[364762999,1749232242444,-480.0,0.00027397,5]
[364763000,1749232242454,-636.54,0.00027397,5]
[364763001,1749232242464,-480.0,0.00027397,5]
[364763002,1749232242475,-480.0,0.00027397,5]
[364763003,1749232242485,-733.8,0.00027397,5]
[364763004,1749232242494,-480.0,0.00027397,5]
[364763005,1749232242504,-480.0,0.00027397,5]
[364763006,1749232242514,-711.04,0.00027397,5]
[364763007,1749232242524,-480.0,0.00027397,5]
[364763008,1749232242534,-480.0,0.00027397,5]
[364763009,1749232242544,-535.50367172,0.00027397,5]
[364763010,1749232242553,-480.0,0.00027397,5]
[364763011,1749232242563,-480.0,0.00027397,5]
[364763012,1749232242575,-480.0,0.00027397,5]
[364763013,1749232242585,-480.0,0.00027397,5]
[364763014,1749232242595,-347.98377284,0.00027397,5]
[364763015,1749232242605,-480.0,0.00027397,5]
[364763016,1749232242614,-593.03,0.00027397,5]
[364763017,1749232242624,-480.0,0.00027397,5]
[364763018,1749232242633,-480.0,0.00027397,5]
[364763019,1749232242642,-1263.91,0.00027397,5]
[364763020,1749232242651,-428.08939245,0.00027397,5]
[364763021,1749232242661,-661.04,0.00027397,5]
[364763022,1749232242670,-1568.4,0.00027397,5]
[364763023,1749232242680,-480.0,0.00027397,5]
[364763024,1749232242689,-502.9,0.00027397,5]
[364763025,1749232242699,-480.0,0.00027397,5]
[364763026,1749232242708,-480.0,0.00027397,5]
[364763027,1749232242717,-480.0,0.00027397,5]
[364763028,1749232242727,-480.0,0.00027397,5]
[364763029,1749232242736,-562.99,0.00027397,5]
[364763030,1749232242745,-480.0,0.00027397,5]
[364763031,1749232242755,-963.1,0.00027397,5]
[364763032,1749232242765,-480.0,0.00027397,5]
[364763033,1749232242774,-480.0,0.00027397,5]
[364763034,1749232242783,-480.0,0.00027397,5]
[364763035,1749232242793,-169.76672196,0.00027397,5]
[364763036,1749232242802,-584.26,0.00027397,5]
[364763037,1749232242811,-489.92817646,0.00027397,5]
[364763038,1749232242821,-480.0,0.00027397,5]
[364763039,1749232242831,-480.0,0.00027397,5]
[364763040,1749232242840,-783.55,0.00027397,5]
[364763041,1749232242850,-487.59230166,0.00027397,5]
[364763042,1749232242860,-694.01,0.00027397,5]
[364763043,1749232242870,-480.0,0.00027397,5]
[364763044,1749232242879,-480.0,0.00027397,5]
[364763045,1749232242889,-480.0,0.00027397,5]
[364763046,1749232242899,-770.15,0.00027397,5]
[364763047,1749232242908,-480.0,0.00027397,5]
[364763048,1749232242918,-480.0,0.00027397,5]
[364763049,1749232242927,-489.3,0.00027397,5]
[364763050,1749232242937,-258.749831,0.00027397,5]
[364763051,1749232242947,-1274.86,0.00027397,5]
[364763052,1749232242956,-534.72,0.00027397,5]
[364763053,1749232242966,-363.83203028,0.00027397,5]
[364763054,1749232242975,-480.0,0.00027397,5]
[364763055,1749232242984,-753.93,0.00027397,5]
[364763056,1749232242994,-586.04108541,0.00027397,5]
[364763057,1749232243003,-422.98572044,0.00027397,5]
[364763058,1749232243013,-480.0,0.00027397,5]
[364763059,1749232243022,-480.0,0.00027397,5]
[364763060,1749232243031,-1368.77,0.00027397,5]
[364763061,1749232243041,-364.41992749,0.00027397,5]
[364763062,1749232243050,-480.0,0.00027397,5]
[364763063,1749232243059,-178.15380278,0.00027397,5]
[364763064,1749232243068,-1051.49,0.00027397,5]
[364763065,1749232243078,-858.86,0.00027397,5]
[364763066,1749232243087,-480.0,0.00027397,5]
[364763067,1749232243096,-572.72,0.00027397,5]
[364763068,1749232243106,-483.7632258,0.00027397,5]
[364763070,1749232243116,-401.57343873,0.00027397,5]
[364763071,1749232243125,-1000.0,0.00027397,5]
[364763072,1749232243134,-484.5,0.00027397,5]
[364763074,1749232243144,-480.0,0.00027397,5]
[364763075,1749232243153,-480.0,0.00027397,5]
[364763076,1749232243163,-480.0,0.00027397,5]
[364763077,1749232243172,-7667.73,0.00027397,5]
[364763078,1749232243182,-425.47665646,0.00027397,5]
[364763079,1749232243191,-484.25389279,0.00027397,5]
[364763080,1749232243201,-480.0,0.00027397,5]
[364763081,1749232243210,-826.1,0.00027397,5]
[364763083,1749232243220,-2263.03,0.00027397,5]
[364763084,1749232243229,-4219.38,0.00027397,5]
[364763085,1749232243239,-480.0,0.00027397,5]
[364763086,1749232243248,-480.0,0.00027397,5]
[364763087,1749232243259,-1005.48,0.00027397,5]
[364763088,1749232243269,-480.0,0.00027397,5]
[364763089,1749232243278,-480.0,0.00027397,5]
[364763090,1749232243288,-714.02,0.00027397,5]
[364763091,1749232243297,-480.0,0.00027397,5]
[364763092,1749232243307,-480.0,0.00027397,5]
[364763093,1749232243316,-480.0,0.00027397,5]
[364763094,1749232243326,-420.0,0.00027397,5]
[364763096,1749232243336,-853.91,0.00027397,5]
[364763098,1749232243346,-1449.47,0.00027397,5]
[364763100,1749232243355,-6635.09,0.00027397,5]
[364763101,1749232243366,-480.0,0.00027397,5]
[364763102,1749232243375,-480.0,0.00027397,5]
[364763103,1749232243385,-480.0,0.00027397,5]
[364763104,1749232243397,-501.24,0.00027397,5]
[364763105,1749232243407,-480.0,0.00027397,5]
[364763106,1749232243417,-480.0,0.00027397,5]
[364763108,1749232243426,-3881.8,0.00027397,5]
[364763109,1749232243435,-480.0,0.00027397,5]
[364763110,1749232243445,-480.0,0.00027397,5]
[364763111,1749232243454,-480.0,0.00027397,5]
[364763112,1749232243464,-2521.17,0.00027397,5]
[364763113,1749232243473,-496.35132524,0.00027397,5]
[364763114,1749232243483,-480.0,0.00027397,5]
[364763115,1749232243492,-376.84998682,0.00027397,5]
[364763116,1749232243502,-480.0,0.00027397,5]
[364763117,1749232243512,-480.0,0.00027397,5]
[364763118,1749232243522,-1000.0,0.00027397,5]
[364763119,1749232243531,-480.0,0.00027397,5]
[364763120,1749232243540,-480.0,0.00027397,5]
[364763121,1749232243549,-480.0,0.00027397,5]
[364763122,1749232243560,-503.15,0.00027397,5]
[364763123,1749232243569,-480.0,0.00027397,5]
[364763124,1749232243579,-480.0,0.00027397,5]
[364763125,1749232243589,-674.03,0.00027397,5]
[364763126,1749232243598,-480.0,0.00027397,5]
[364763127,1749232243607,-480.0,0.00027397,5]
[364763128,1749232243616,-480.0,0.00027397,5]
[364763129,1749232243625,-480.0,0.00027397,5]
[364763130,1749232243634,-486.94873946,0.00027397,5]
[364763131,1749232243644,-790.26,0.00027397,5]
[364763132,1749232243655,-480.0,0.00027397,5]
[364763133,1749232243665,-480.0,0.00027397,5]
[364763134,1749232243675,-1159.15,0.00027397,5]
[364763135,1749232243684,-294.85269603,0.00027397,5]
[364763136,1749232243693,-480.0,0.00027397,5]
[364763137,1749232243702,-480.0,0.00027397,5]
[364763138,1749232243711,-945.96,0.00027397,5]
[364763139,1749232243720,-434.12118054,0.00027397,5]
[364763140,1749232243729,-480.0,0.00027397,5]
[364763141,1749232243738,-9400.84,0.00027397,5]
[364763142,1749232243747,-1025.22,0.00027397,5]
[364763143,1749232243756,-480.0,0.00027397,5]
[364763144,1749232243766,-840.87,0.00027397,5]
[364763145,1749232243775,-480.0,0.00027397,5]
[364763146,1749232243784,-480.0,0.00027397,5]
[364763147,1749232243794,-480.0,0.00027397,5]
[364763148,1749232243803,-497.59,0.00027397,5]
[364763149,1749232243812,-480.0,0.00027397,5]
[364763150,1749232243821,-480.0,0.00027397,5]
[364763151,1749232243830,-480.0,0.00027397,5]
[364763152,1749232243839,-998.42,0.00027397,5]
[364763153,1749232243848,-529.79,0.00027397,5]
[364763154,1749232243858,-480.0,0.00027397,5]
[364763156,1749232243867,-1301.33,0.00027397,5]
[364763158,1749232243876,-480.0,0.00027397,5]
[364763160,1749232243885,-1362.78,0.00027397,5]
[364763161,1749232243895,-1124.54,0.00027397,5]
[364763163,1749232243904,-878.04,0.00027397,5]
[364763165,1749232243913,-480.0,0.00027397,5]
[364763166,1749232243922,-480.0,0.00027397,5]
[364763167,1749232243932,-491.51013629,0.00027397,5]
[364763168,1749232243942,-480.0,0.00027397,5]
[364763169,1749232243951,-480.0,0.00027397,5]
[364763170,1749232243961,-480.0,0.00027397,5]
[364763171,1749232243970,-876.69,0.00027397,5]
[364763172,1749232243979,-1190.68,0.00027397,5]
[364763173,1749232243989,-480.0,0.00027397,5]
[364763174,1749232243998,-1561.38,0.00027397,5]
[364763175,1749232244009,-480.0,0.00027397,5]
[364763176,1749232244018,-490.13198096,0.00027397,5]
[364763177,1749232244028,-563.97,0.00027397,5]
[364763178,1749232244038,-480.0,0.00027397,5]
[364763179,1749232244047,-719.53,0.00027397,5]
[364763180,1749232244056,-496.95405679,0.00027397,5]
[364763181,1749232244066,-480.00829482,0.00027397,5]
[364763182,1749232244076,-1158.61,0.00027397,5]
[364763183,1749232244085,-480.0,0.00027397,5]
[364763184,1749232244095,-607.42,0.00027397,5]
[364763185,1749232244105,-480.0,0.00027397,5]
[364763186,1749232244115,-975.39,0.00027397,5]
[364763187,1749232244125,-2546.76,0.00027397,5]
[364763188,1749232244134,-3925.33,0.00027397,5]
[364763189,1749232244143,-480.0,0.00027397,5]
[364763190,1749232244153,-480.0,0.00027397,5]
[364763191,1749232244163,-1292.48,0.00027397,5]
[364763192,1749232244172,-3258.84,0.00027397,5]
[364763193,1749232244181,-497.07365701,0.00027397,5]
[364763194,1749232244191,-1084.05,0.00027397,5]
[364763195,1749232244200,-480.0,0.00027397,5]
[364763196,1749232244209,-480.0,0.00027397,5]
[364763197,1749232244218,-480.0,0.00027397,5]
[364763198,1749232244227,-802.8,0.00027397,5]
[364763199,1749232244236,-480.0,0.00027397,5]
[364763200,1749232244246,-480.0,0.00027397,5]
[364763201,1749232244256,-2408.27,0.00027397,5]
[364763202,1749232244265,-485.62,0.00027397,5]
[364763203,1749232244274,-1116.88,0.00027397,5]
[364763204,1749232244284,-864.58,0.00027397,5]
[364763205,1749232244293,-497.91429533,0.00027397,5]
[364763206,1749232244302,-427.21415173,0.00027397,5]
[364763207,1749232244312,-488.19165287,0.00027397,5]
[364763208,1749232244321,-500.0,0.00027397,5]
[364763209,1749232244331,-500.0,0.00027397,5]
[364763210,1749232244340,-1084.42,0.00027397,5]
[364763211,1749232244349,-480.0,0.00027397,5]
[364763212,1749232244358,-483.35483192,0.00027397,5]
[364763213,1749232244367,-1000.0,0.00027397,2]
[364763214,1749232244377,-480.0,0.00027397,5]